bitfinex/quotes_SOLUSD_20251226
["timestamp","ask_amount","ask_price","bid_price","bid_amount"]
[1766722252014,4.16611106,122.07,122.04,0.72]
[1766722252220,3.48611106,122.06,122.04,0.72]
[1766722253604,4.16611106,122.07,122.04,0.72]
[1766722253814,8.87210813,122.07,122.04,0.72]
[1766722254011,12.35821919,122.07,122.04,0.72]
[1766722254727,8.87210813,122.07,122.04,4.20611106]
[1766722256518,8.87210813,122.07,122.04,0.72]
[1766722256710,8.87210813,122.07,122.04,4.20611106]
[1766722258729,0.2,122.08,122.06,3.48611106]
[1766722258935,0.04,122.07,122.06,3.48611106]
[1766722259234,0.04,122.07,122.06,3.44611106]
[1766722260018,0.04,122.07,122.05,3.48611106]
[1766722260320,8.39136071,122.08,122.05,3.48611106]
[1766722260929,8.39136071,122.08,122.06,3.48611106]
[1766722261317,8.39136071,122.08,122.05,3.48611106]
[1766722262831,0.68,122.09,122.06,3.48611106]
[1766722263223,0.68,122.09,122.05,4.20611106]
[1766722263424,0.68,122.09,122.05,3.48611106]
[1766722263821,0.68,122.09,122.04,0.72]
[1766722264025,0.68,122.08,122.05,3.48611106]
[1766722264819,8.87200035,122.08,122.05,3.48611106]
[1766722269136,10.63767296,122.1,122.07,0.72]
[1766722269337,19.50790899,122.1,122.07,3.48611106]
[1766722270444,0.68,122.09,122.07,3.48611106]
[1766722270742,8.19084159,122.09,122.03,23.15452238]
[1766722270951,0.68,122.07,122.04,3.48611106]
[1766722271446,0.68,122.07,122.04,4.20611106]
[1766722272028,8.87210591,122.07,122.04,4.20611106]
[1766722272229,8.87210591,122.07,122.04,0.72]
[1766722272542,8.87210591,122.07,122.04,4.20611106]
[1766722274050,8.19136293,122.08,122.05,3.48611106]
[1766722274361,8.19136293,122.08,122.06,0.7]
[1766722274530,8.19136293,122.08,122.05,3.48611106]
[1766722274849,8.19136293,122.08,122.05,4.18611106]
[1766722277654,8.19136293,122.08,122.06,0.7]
[1766722278730,8.19096309,122.09,122.06,0.7]
[1766722278933,12.39707415,122.09,122.06,0.7]
[1766722279553,8.91096309,122.09,122.06,0.7]
[1766722279732,12.39707415,122.09,122.06,0.7]
[1766722279931,32.87377166,122.09,122.06,0.7]
[1766722282556,8.91096309,122.09,122.06,0.7]
[1766722282756,0.72,122.09,122.06,4.18611106]
[1766722283145,0.72,122.09,122.07,3.48611106]
[1766722283954,0.2,122.1,122.08,4.18611106]
[1766722284161,5.64993583,122.1,122.08,4.18611106]
[1766722284457,13.84005715,122.1,122.08,4.18611106]
[1766722284648,8.39012132,122.1,122.08,0.7]
[1766722285236,8.39012132,122.1,122.08,4.18611106]
[1766722285955,28.86514179,122.1,122.03,23.1544839]
[1766722286155,0.72,122.07,122.04,2.22813124]
[1766722286356,0.72,122.07,122.03,2.92813124]
[1766722286561,8.91267684,122.07,122.03,0.7]
[1766722286758,8.91267684,122.07,122.03,2.92813124]
[1766722288460,8.91267684,122.07,122.04,2.22813124]
[1766722291460,0.72,122.04,121.98,22.72238218]
[1766722291636,2.94813124,122.04,122.0,2.22813124]
[1766722291843,0.72,122.04,122.01,2.22813124]
[1766722292158,0.72,122.04,122.01,2.92813124]
[1766722294863,8.91408921,122.04,122.01,2.92813124]
[1766722295742,8.91408921,122.04,122.01,0.7]
[1766722295944,8.91408921,122.04,122.01,2.92813124]
[1766722296878,11.14222045,122.04,122.01,0.7]
[1766722298568,11.14222045,122.04,122.01,2.92813124]
[1766722298569,8.91408921,122.04,122.01,2.92813124]
[1766722301673,8.91408921,122.04,122.01,0.7]
[1766722301973,8.91408921,122.04,122.01,2.92813124]
[1766722307284,8.19408921,122.04,122.01,0.7]
[1766722307481,0.66,122.03,122.0,2.22813124]
[1766722307785,0.66,122.03,122.01,0.72]
[1766722308287,0.66,122.01,121.98,0.72]
[1766722308494,0.66,122.01,121.98,2.94813124]
[1766722308660,2.88813124,122.02,121.99,0.72]
[1766722309182,0.66,122.01,121.98,2.94813124]
[1766722309690,0.66,122.01,121.98,0.72]
[1766722310275,0.66,122.01,121.97,25.38673085]
[1766722310484,8.85622193,122.01,121.98,2.94813124]
[1766722310691,0.66,122.0,121.98,2.22813124]
[1766722313383,0.66,122.0,121.98,1.86813124]
[1766722313978,0.66,122.0,121.99,0.5]
[1766722314491,8.85672131,122.0,121.97,14.96]
[1766722314679,0.56,121.99,121.97,2.22813124]
[1766722314992,8.19672131,122.0,121.98,0.72]
[1766722316064,10.42485255,122.0,121.98,0.72]
[1766722316994,8.19672131,122.0,121.98,0.72]
[1766722318381,8.19672131,122.0,121.98,2.94813124]
[1766722318771,8.19672131,122.0,121.98,0.72]
[1766722319568,8.19618778,122.01,121.99,0.72]
[1766722319768,23.71563177,122.02,121.99,0.72]
[1766722320485,23.71563177,122.02,121.99,2.94813124]
[1766722320988,8.19484976,122.03,122.0,2.22813124]
[1766722321191,8.19484976,122.03,121.94,14.96]
[1766722321192,8.19418479,122.04,122.01,2.94813124]
[1766722321988,8.75418479,122.04,122.01,2.94813124]
[1766722322179,10.98231603,122.04,122.01,0.72]
[1766722322396,8.75418479,122.04,122.01,0.72]
[1766722322581,10.98231603,122.04,122.01,0.72]
[1766722322985,10.42231603,122.04,122.01,0.72]
[1766722323378,10.98231603,122.04,122.01,0.72]
[1766722324495,0.56,122.03,122.0,2.22813124]
[1766722324791,0.56,122.03,121.99,2.22813124]
[1766722325092,2.22813124,122.02,121.99,0.72]
[1766722325391,2.78813124,122.02,121.99,0.72]
[1766722325582,2.22813124,122.01,121.99,0.72]
[1766722327792,8.75586286,122.02,121.99,0.72]
[1766722328095,10.9839941,122.02,121.98,2.22813124]
[1766722328294,0.56,122.01,121.98,0.72]
[1766722328986,0.56,122.01,121.98,2.94813124]
[1766722330174,10.9839941,122.02,121.98,2.94813124]
[1766722330496,8.75586286,122.02,121.98,2.22813124]
[1766722330681,8.75586286,122.02,121.99,0.72]
[1766722335622,8.75586286,122.02,121.98,2.22813124]
[1766722335623,8.19470621,122.03,122.01,0.71]
[1766722335791,8.19470621,122.03,122.0,2.93813124]
[1766722335989,8.75470621,122.03,122.0,2.93813124]
[1766722336534,8.75470621,122.03,122.0,0.71]
[1766722336818,8.75470621,122.03,121.99,0.71]
[1766722337113,8.75470621,122.03,121.99,2.93813124]
[1766722339494,8.75470621,122.03,121.99,2.22813124]
[1766722339816,10.4224277,122.04,122.01,0.71]
[1766722340615,10.9824277,122.04,122.0,2.93813124]
[1766722340794,10.9824277,122.04,122.0,0.71]
[1766722343242,8.75429646,122.04,122.0,0.71]
[1766722343436,10.9824277,122.04,122.0,0.71]
[1766722344038,10.4224277,122.04,122.0,0.71]
[1766722344422,10.9824277,122.04,122.0,0.71]
[1766722344947,10.9824277,122.04,122.01,0.71]
[1766722345933,12.23989018,122.04,122.01,0.71]
[1766722346118,12.23989018,122.04,121.98,3.48559372]
[1766722346119,4.14559372,122.02,121.98,3.48559372]
[1766722346641,4.14559372,122.03,121.98,3.48559372]
[1766722348036,8.1953778,122.02,121.99,0.71]
[1766722352717,11.68097152,122.02,121.99,0.71]
[1766722352929,8.1953778,122.02,121.99,0.71]
[1766722354244,8.8553778,122.02,121.99,0.71]
[1766722354754,12.34097152,122.02,121.99,0.71]
[1766722355746,4.14559372,122.01,121.97,4.19559372]
[1766722356130,4.14559372,122.01,121.98,0.71]
[1766722358656,12.34195394,122.01,121.98,0.71]
[1766722359154,8.85574971,122.02,121.99,4.19559372]
[1766722361843,8.85574971,122.02,121.99,0.71]
[1766722365061,12.34134343,122.02,121.99,0.71]
[1766722367363,8.85574971,122.02,121.99,0.71]
[1766722367556,12.34134343,122.02,121.99,0.71]
[1766722368562,0.67,122.01,121.99,0.71]
[1766722369063,12.35134343,122.02,121.99,0.71]
[1766722372058,23.15484015,122.03,121.99,0.71]
[1766722372261,5.46114136,122.02,122.0,0.68]
[1766722374452,6.13114136,122.02,122.0,0.68]
[1766722374654,0.67,122.02,122.0,0.68]
[1766722378469,0.67,122.0,121.97,0.68]
[1766722378769,4.15559372,122.01,121.97,0.68]
[1766722379076,12.35208432,122.01,121.97,0.68]
[1766722380269,3.48559372,122.0,121.97,0.68]
[1766722380573,12.35208432,122.01,121.97,0.68]
[1766722380871,8.8664906,122.01,121.97,0.68]
[1766722381053,8.19563507,122.02,121.98,0.68]
[1766722381248,11.68040678,122.03,121.99,0.68]
[1766722381445,27.30565292,122.06,122.0,3.48559372]
[1766722381646,5.45929788,122.05,122.01,3.48559372]
[1766722381846,4.15559372,122.06,122.02,0.68]
[1766722382049,0.67,122.06,122.03,0.68]
[1766722382669,11.67765142,122.07,122.03,0.68]
[1766722382859,12.34765142,122.07,122.03,0.68]
[1766722386801,0.67,122.06,122.03,0.68]
[1766722387999,0.67,122.06,122.03,4.16559372]
[1766722389380,0.67,122.06,122.03,0.68]
[1766722392396,8.1920577,122.07,122.04,0.68]
[1766722392604,8.1920577,122.07,121.98,104.6]
[1766722392605,4.15559372,122.05,121.98,104.6]
[1766722392808,4.15559372,122.04,122.01,0.68]
[1766722397120,3.48559372,122.03,122.01,0.68]
[1766722397281,4.20559372,122.03,122.01,0.68]
[1766722397985,8.19445723,122.04,122.01,0.68]
[1766722398323,12.40005095,122.04,122.01,0.68]
[1766722399810,4.20559372,122.04,122.01,0.67]
[1766722401355,8.91425374,122.04,122.01,0.67]
[1766722401637,12.39984746,122.04,122.01,0.67]
[1766722402012,8.91425374,122.04,122.01,0.67]
[1766722402214,12.39984746,122.04,122.01,0.67]
[1766722402414,0.72,122.04,122.02,0.67]
[1766722403216,0.72,122.04,122.01,4.15559372]
[1766722403932,4.20559372,122.04,122.01,0.67]
[1766722408043,11.14466802,122.04,122.01,0.67]
[1766722408241,8.91409061,122.04,122.01,2.23057741]
[1766722408542,8.91409061,122.04,122.01,2.90057741]
[1766722415443,8.91409061,122.04,122.01,0.67]
[1766722417455,8.91409061,122.04,122.01,2.90057741]
[1766722419482,8.91409061,122.04,122.02,0.67]
[1766722420885,0.72,122.05,122.02,0.67]
[1766722421052,0.72,122.05,122.02,2.90057741]
[1766722422681,8.91354094,122.05,122.02,2.90057741]
[1766722423569,8.91354094,122.05,122.02,0.67]
[1766722424058,0.72,122.04,122.02,0.67]
[1766722424580,8.91354094,122.05,122.02,0.67]
[1766722425766,0.72,122.04,122.02,0.67]
[1766722428380,8.91405195,122.04,122.02,0.67]
[1766722433589,0.71,122.05,122.02,0.67]
[1766722435189,5.46451077,122.04,122.02,0.67]
[1766722435888,6.17451077,122.04,122.01,2.23057741]
[1766722436062,0.71,122.04,122.02,0.71]
[1766722441093,8.90269211,122.06,122.03,2.23057741]
[1766722441297,5.46874142,122.05,122.04,0.71]
[1766722441599,5.46874142,122.05,122.03,2.94057741]
[1766722441782,5.46874142,122.05,122.04,0.71]
[1766722441983,5.46874142,122.05,122.03,2.23057741]
[1766722442287,5.46874142,122.05,122.03,2.94057741]
[1766722443189,8.90269211,122.06,122.03,2.94057741]
[1766722445194,0.71,122.06,122.04,0.71]
[1766722445887,0.71,122.06,122.04,2.94057741]
[1766722446481,0.71,122.06,122.04,0.71]
[1766722446686,8.90275864,122.06,122.04,0.71]
[1766722449306,2.23057741,122.07,122.04,0.71]
[1766722449307,11.13289044,122.07,122.04,0.71]
[1766722449513,0.71,122.06,122.04,0.71]
[1766722450503,0.71,122.05,122.02,17.90057741]
[1766722450902,0.71,122.05,122.03,0.71]
[1766722451391,8.90337036,122.05,122.03,0.71]
[1766722451914,8.90337036,122.05,122.02,14.96]
[1766722452222,8.90337036,122.05,122.03,0.71]
[1766722452608,8.19337036,122.05,122.03,0.71]
[1766722456121,8.9029354,122.06,122.03,0.71]
[1766722461634,8.9029354,122.06,122.03,2.94057741]
[1766722463227,0.67,122.05,122.03,2.23057741]
[1766722463411,8.1929354,122.06,122.03,2.23057741]
[1766722463611,8.8629354,122.06,122.03,2.93057741]
[1766722463909,8.8629354,122.06,122.03,0.7]
[1766722464119,0.67,122.05,122.03,2.93057741]
[1766722464618,8.1929354,122.06,122.03,2.93057741]
[1766722464818,8.8629354,122.06,122.03,2.93057741]
[1766722465832,8.19214885,122.07,122.04,2.93057741]
[1766722466033,8.86214885,122.07,122.04,2.93057741]
[1766722467108,8.86214885,122.07,122.04,2.23057741]
[1766722467109,0.67,122.07,122.04,2.23057741]
[1766722467312,0.67,122.08,122.06,0.7]
[1766722468511,0.67,122.08,122.05,2.23057741]
[1766722468716,0.67,122.08,122.05,2.93057741]
[1766722469230,8.19088478,122.09,122.05,2.23057741]
[1766722469446,6.12521623,122.08,122.06,0.7]
[1766722469616,0.67,122.08,122.06,0.7]
[1766722469811,2.23057741,122.07,122.02,0.7]
[1766722470037,4.15474392,122.05,122.02,0.7]
[1766722473532,12.34812143,122.05,122.02,0.7]
[1766722474825,8.86337751,122.05,122.02,0.7]
[1766722478540,8.85337751,122.05,122.02,0.7]
[1766722480338,8.85337751,122.05,122.02,4.18474392]
[1766722482949,8.85337751,122.05,122.02,3.48474392]
[1766722483245,8.85337751,122.05,122.03,0.72]
[1766722483621,11.67676489,122.07,122.04,0.72]
[1766722483821,6.11627406,122.06,122.04,0.72]
[1766722484023,0.66,122.06,122.04,0.72]
[1766722484223,0.66,122.06,122.03,4.20474392]
[1766722485358,8.89202097,122.07,122.04,0.72]
[1766722485663,5.45701808,122.06,122.04,4.20474392]
[1766722486621,8.89202097,122.07,122.04,4.20474392]
[1766722488849,8.89202097,122.07,122.04,0.72]
[1766722489037,8.89202097,122.07,122.04,4.20474392]
[1766722489444,0.7,122.07,122.05,0.72]
[1766722489643,0.7,122.07,122.05,4.20474392]
[1766722489831,0.7,122.07,122.05,0.72]
[1766722493243,8.89239003,122.07,122.05,0.72]
[1766722498967,12.37713395,122.07,122.05,0.72]
[1766722500864,8.89239003,122.07,122.05,0.72]
[1766722501061,12.37713395,122.07,122.05,0.72]
[1766722501261,0.69,122.05,122.0,0.66]
[1766722501466,4.17474392,122.04,122.01,0.66]
[1766722501852,0.69,122.04,122.01,4.14474392]
[1766722502058,0.69,122.04,122.01,0.66]
[1766722502264,0.69,122.04,122.01,4.14474392]
[1766722502465,0.69,122.04,122.01,0.66]
[1766722502664,4.17474392,122.03,122.0,0.66]
[1766722503058,3.48474392,122.01,121.97,4.14474392]
[1766722503265,8.88677719,122.0,121.97,0.66]
[1766722503460,12.37152111,122.0,121.97,0.66]
[1766722504266,12.37152111,122.0,121.96,3.48474392]
[1766722504267,0.69,121.99,121.96,0.66]
[1766722505283,8.88748432,121.99,121.96,0.66]
[1766722506574,12.37162104,122.0,121.97,0.66]
[1766722506965,0.69,121.99,121.97,0.66]
[1766722508370,8.88739885,121.99,121.96,0.66]
[1766722510784,8.88739885,121.99,121.96,4.14474392]
[1766722511381,12.37175336,122.0,121.97,0.66]
[1766722511592,8.88700944,122.0,121.97,4.14474392]
[1766722512889,8.88700944,122.0,121.97,0.66]
[1766722513094,8.88700944,122.0,121.97,4.14474392]
[1766722513294,8.88700944,122.0,121.97,0.66]
[1766722515605,12.37175336,122.0,121.97,0.66]
[1766722515983,11.68175336,122.0,121.97,0.66]
[1766722516297,4.14474392,121.99,121.96,0.67]
[1766722517379,0.66,121.99,121.96,0.67]
[1766722518099,125.18560242,122.04,121.98,3.48474392]
[1766722518398,4.14474392,122.02,121.99,0.67]
[1766722518588,0.66,122.02,121.99,4.15474392]
[1766722518795,0.66,122.02,122.0,0.67]
[1766722519587,0.66,122.02,121.99,4.15474392]
[1766722520202,0.66,122.01,121.98,4.15474392]
[1766722520581,3.48474392,122.01,121.98,0.67]
[1766722520883,0.66,122.0,121.97,0.67]
[1766722521704,0.66,122.0,121.97,4.15474392]
[1766722522191,0.66,122.0,121.97,0.67]
[1766722522192,12.34193466,122.0,121.97,0.67]
[1766722522405,0.66,121.99,121.96,0.67]
[1766722523014,4.14474392,121.99,121.96,0.67]
[1766722523725,12.34220233,121.99,121.96,0.67]
[1766722525424,0.66,121.98,121.95,14.96]
[1766722525804,0.66,121.98,121.95,15.63]
[1766722526612,0.66,121.98,121.95,0.67]
[1766722527318,8.85823578,121.98,121.94,4.15474392]
[1766722527504,0.66,121.97,121.94,4.15474392]
[1766722529136,12.34393469,121.97,121.94,0.67]
[1766722529307,0.66,121.96,121.93,0.67]
[1766722530316,0.66,121.96,121.93,2.90336801]
[1766722532940,11.09167295,121.98,121.95,0.67]
[1766722533509,8.85758828,121.99,121.96,0.67]
[1766722534034,8.85758828,121.99,121.96,2.90336801]
[1766722534736,0.66,122.0,121.97,2.90336801]
[1766722534917,0.66,122.0,121.97,0.67]
[1766722535936,0.66,122.0,121.97,2.90336801]
[1766722536230,8.85630934,122.01,121.98,0.67]
[1766722536433,0.66,122.01,121.98,2.90336801]
[1766722537428,8.19565856,122.02,121.98,2.23336801]
[1766722537646,8.85565856,122.02,121.99,0.67]
[1766722538944,8.19565856,122.02,121.99,0.67]
[1766722539257,0.66,122.01,121.99,0.67]
[1766722539434,8.19565856,122.02,121.99,0.67]
[1766722539630,8.85565856,122.02,121.99,0.67]
[1766722540273,0.66,122.01,121.96,0.67]
[1766722540451,0.66,122.01,121.97,2.90336801]
[1766722540628,2.89336801,122.01,121.97,2.90336801]
[1766722541050,0.66,122.0,121.97,2.90336801]
[1766722541257,8.85680578,122.0,121.97,0.67]
[1766722542063,11.09017379,122.0,121.97,0.67]
[1766722542455,2.91336801,121.99,121.96,0.66]
[1766722543169,2.23336801,121.99,121.96,0.66]
[1766722543338,8.87680578,122.0,121.96,0.66]
[1766722543657,2.23336801,121.99,121.96,0.66]
[1766722545145,8.87680578,122.0,121.96,0.66]
[1766722545471,11.11017379,122.0,121.96,0.66]
[1766722548646,8.19680578,122.0,121.97,0.66]
[1766722548964,11.10960338,122.01,121.98,0.66]
[1766722552056,8.87623537,122.01,121.98,2.89336801]
[1766722553969,8.19623537,122.01,121.98,2.89336801]
[1766722554175,0.68,122.0,121.98,2.89336801]
[1766722555070,22.72181252,122.02,121.98,2.89336801]
[1766722555071,0.68,122.02,121.99,0.66]
[1766722556286,8.19568705,122.02,121.99,0.66]
[1766722556478,0.68,122.01,121.99,0.66]
[1766722558478,10.43767296,122.01,121.99,2.23336801]
[1766722558670,10.43767296,122.01,121.99,2.89336801]
[1766722560183,0.68,122.02,121.99,2.89336801]
[1766722560372,8.19488716,122.03,121.99,2.23336801]
[1766722560565,8.87419895,122.04,122.01,0.66]
[1766722560901,8.87336404,122.05,122.02,2.89336801]
[1766722561364,23.83295962,122.06,122.03,0.66]
[1766722561565,10.43767296,122.05,122.03,0.66]
[1766722561875,8.87202612,122.07,122.04,2.89336801]
[1766722562262,8.87202612,122.07,122.04,0.66]
[1766722562802,11.10539413,122.07,122.04,0.66]
[1766722563688,23.83162585,122.08,122.05,2.23336801]
[1766722563883,23.83162585,122.08,122.04,0.66]
[1766722564082,8.87162585,122.08,122.04,2.89336801]
[1766722564477,0.68,122.08,122.05,0.66]
[1766722564675,0.68,122.08,122.05,2.89336801]
[1766722564988,0.68,122.08,122.06,0.66]
[1766722565171,8.87137977,122.08,122.05,2.23336801]
[1766722565370,8.87137977,122.08,122.05,0.66]
[1766722566599,8.87137977,122.08,122.05,2.89336801]
[1766722567404,0.68,122.08,122.05,2.89336801]
[1766722567610,0.68,122.08,122.05,0.66]
[1766722567786,8.87154231,122.08,122.05,2.89336801]
[1766722569214,0.68,122.08,122.05,2.89336801]
[1766722569413,11.10480489,122.08,122.05,0.66]
[1766722569713,8.87143688,122.08,122.05,2.89336801]
[1766722569889,0.68,122.08,122.05,2.89336801]
[1766722570205,0.68,122.08,122.05,0.66]
[1766722570408,0.68,122.08,122.05,2.89336801]
[1766722570610,0.68,122.08,122.05,2.23336801]
[1766722570816,0.68,122.08,122.02,23.15508515]
[1766722570993,0.68,122.07,122.04,0.66]
[1766722571802,2.91336801,122.08,122.04,0.66]
[1766722572311,2.91336801,122.08,122.04,2.23336801]
[1766722572516,11.10433334,122.09,122.06,0.66]
[1766722572714,8.87096533,122.09,122.06,0.66]
[1766722573016,11.10433334,122.09,122.06,0.66]
[1766722573510,8.87096533,122.09,122.06,0.66]
[1766722573711,11.10433334,122.09,122.06,0.66]
[1766722573931,8.87096533,122.09,122.06,0.66]
[1766722574211,11.10433334,122.09,122.06,0.66]
[1766722574516,8.87096533,122.09,122.06,0.66]
[1766722575618,11.10433334,122.09,122.06,0.66]
[1766722575919,8.87096533,122.09,122.06,0.66]
[1766722576217,11.10433334,122.09,122.06,0.66]
[1766722576809,0.67,122.08,122.05,2.23336801]
[1766722577008,46.07334869,122.1,122.05,2.23336801]
[1766722577009,15.16,122.1,122.05,2.23336801]
[1766722577211,9.060227,122.1,122.07,2.23336801]
[1766722577416,0.67,122.09,122.07,2.23336801]
[1766722578128,0.2,122.1,122.08,2.91336801]
[1766722578297,0.2,122.12,122.1,0.19]
[1766722578498,0.2,122.12,122.11,2.23336801]
[1766722578700,0.2,122.12,122.1,2.42336801]
[1766722578909,0.2,122.12,122.11,2.23336801]
[1766722579425,0.2,122.14,122.11,2.23336801]
[1766722579594,0.2,122.15,122.13,5.61e-06]
[1766722580218,0.2,122.15,122.1,43.6248541]
[1766722580540,0.67,122.14,122.09,8.19051565]
[1766722580821,11.09098077,122.14,122.1,2.23336801]
[1766722581027,0.67,122.13,122.09,8.19051565]
[1766722581227,0.67,122.13,122.11,2.23336801]
[1766722581605,0.67,122.13,122.1,8.18974299]
[1766722581806,0.67,122.13,122.1,10.423111]
[1766722582826,0.67,122.14,122.11,2.23336801]
[1766722584229,0.67,122.13,122.08,25.39767296]
[1766722584526,0.67,122.13,122.1,10.423263]
[1766722584830,0.67,122.14,122.1,10.423263]
[1766722585127,0.67,122.14,122.1,8.18989499]
[1766722585429,2.90336801,122.14,122.1,10.423263]
[1766722585623,0.67,122.14,122.1,10.423263]
[1766722585802,2.90336801,122.14,122.1,10.423263]
[1766722586309,2.90336801,122.14,122.1,8.18989499]
[1766722586624,2.90336801,122.14,122.1,10.423263]
[1766722587026,2.90336801,122.14,122.09,28.66661977]
[1766722587323,2.90336801,122.14,122.1,2.23336801]
[1766722588526,2.90336801,122.14,122.1,10.42336661]
[1766722589809,0.67,122.14,122.1,10.42336661]
[1766722590012,0.67,122.14,122.1,3.47915422]
[1766722591712,0.67,122.14,122.1,11.6691342]
[1766722592739,4.14915422,122.14,122.1,11.6691342]
[1766722596240,3.47915422,122.14,122.1,11.6691342]
[1766722596441,0.87,122.15,122.11,18.43915422]
[1766722597433,0.87,122.15,122.12,8.18866688]
[1766722597822,4.34915422,122.15,122.12,8.18866688]
[1766722598027,0.67,122.14,122.11,14.96]
[1766722598339,4.14915422,122.14,122.11,14.96]
[1766722599045,4.14915422,122.14,122.1,23.14941459]
[1766722599227,4.14915422,122.14,122.1,26.62856881]
[1766722599434,0.67,122.14,122.11,8.18928951]
[1766722599735,4.14915422,122.14,122.11,8.18928951]
[1766722600147,4.14915422,122.14,122.1,23.14978719]
[1766722601245,3.47915422,122.12,122.07,20.47899973]
[1766722601422,0.67,122.11,122.08,23.15097975]
[1766722601622,0.67,122.14,122.08,23.15097975]
[1766722601839,4.14915422,122.12,122.08,23.15097975]
[1766722609961,3.47915422,122.12,122.08,23.15097975]
[1766722610169,0.66,122.11,122.08,23.15097975]
[1766722610678,11.66733293,122.13,122.08,26.63013397]
[1766722610868,0.66,122.12,122.08,26.63013397]
[1766722613958,0.66,122.12,122.09,3.47915422]
[1766722614452,0.66,122.12,122.09,11.6695212]
[1766722617756,0.66,122.12,122.09,8.19036698]
[1766722621685,0.66,122.12,122.1,3.47915422]
[1766722622394,0.66,122.12,122.09,8.19036698]
[1766722622577,0.66,122.12,122.09,11.6695212]
[1766722623990,0.66,122.12,122.09,8.19036698]
[1766722624584,3.47915422,122.12,122.08,26.63025051]
[1766722624789,4.13915422,122.12,122.08,26.63025051]
[1766722625184,4.13915422,122.12,122.08,23.15109629]
[1766722625582,3.47915422,122.11,122.08,14.96]
[1766722625892,3.47915422,122.11,122.05,23.1529645]
[1766722625893,0.66,122.08,122.05,23.1529645]
[1766722626071,4.13915422,122.08,122.05,23.1529645]
[1766722629294,0.66,122.08,122.05,23.1529645]
[1766722632977,0.66,122.08,122.05,26.63211872]
[1766722634294,4.15915422,122.11,122.07,3.47915422]
[1766722634498,0.68,122.11,122.07,3.47915422]
[1766722634799,0.68,122.11,122.09,8.190679]
[1766722636003,4.15915422,122.13,122.09,8.190679]
[1766722636183,0.68,122.13,122.09,11.66983322]
[1766722636507,0.68,122.14,122.11,3.47915422]
[1766722637003,0.68,122.14,122.11,11.66841983]
[1766722637393,0.68,122.13,122.1,11.66893306]
[1766722638290,0.68,122.13,122.08,11.67026412]
[1766722638291,0.68,122.12,122.08,11.67026412]
[1766722638484,0.68,122.12,122.1,14.96]
[1766722638685,0.68,122.12,122.08,26.63026412]
[1766722639008,4.15915422,122.12,122.08,26.63026412]
[1766722639504,0.68,122.11,122.08,26.63026412]
[1766722642806,0.68,122.11,122.08,11.67026412]
[1766722642998,0.68,122.11,122.09,14.96]
[1766722644583,11.66717104,122.13,122.02,40.97503167]
[1766722644584,0.68,122.09,122.02,40.97503167]
[1766722644784,0.68,122.08,122.04,18.43915422]
[1766722645204,0.68,122.08,122.05,8.19327124]
[1766722645813,0.68,122.08,122.05,11.67242546]
[1766722648193,0.68,122.08,122.04,23.15397321]
[1766722648425,0.68,122.08,122.04,26.63312743]
[1766722650297,0.68,122.08,122.04,23.15397321]
[1766722650497,0.68,122.08,122.04,26.63312743]
[1766722651915,0.68,122.08,122.04,25.38286769]
[1766722653839,0.68,122.07,122.04,25.38286769]
[1766722655707,0.68,122.09,122.05,2.22889448]
[1766722655907,0.68,122.08,122.05,2.22889448]
[1766722656602,0.68,122.08,122.04,23.15397321]
[1766722656821,0.68,122.08,122.04,25.38286769]
[1766722659942,0.68,122.04,122.0,4.26747044]
[1766722660147,2.90889448,122.03,122.0,14.96]
[1766722660329,0.68,122.03,122.0,14.96]
[1766722660649,0.68,122.03,122.0,23.15646235]
[1766722661250,0.68,122.03,122.0,25.38535683]
[1766722662936,0.68,122.03,122.0,23.15646235]
[1766722664381,0.68,122.03,122.0,25.38535683]